[Event "*** Titled Tuesday 3|2 Blitz"]
[Site "Chess.com"]
[Date "2017.03.07"]
[Round "9"]
[White "HouseOfDurin"]
[Black "JeremDev"]
[Result "0-1"]
[WhiteElo "1851"]
[BlackElo "2223"]
[TimeControl "180+2"]
[EndTime "15:08:32 PST"]
[Termination "JeremDev won by resignation"]

1. d4 {[%clk 0:03:02]} 1... Nf6 {[%clk 0:03:00.1]} 2. Bg5 {[%clk 0:03:02.9]}
2... Ne4 {[%clk 0:02:59.5]} 3. h4 {[%clk 0:03:03.9]} 3... g6 {[%clk 0:02:50]} 4.
Nd2 {[%clk 0:03:02.8]} 4... Nxg5 {[%clk 0:02:50.8]} 5. hxg5 {[%clk 0:03:04.7]}
5... Bg7 {[%clk 0:02:52]} 6. Ngf3 {[%clk 0:03:05.8]} 6... c5 {[%clk 0:02:52.2]}
7. c3 {[%clk 0:02:59.3]} 7... cxd4 {[%clk 0:02:52.1]} 8. cxd4 {[%clk 0:02:59.1]}
8... d5 {[%clk 0:02:48.7]} 9. e3 {[%clk 0:02:49.1]} 9... Nc6 {[%clk 0:02:49.5]}
10. Bd3 {[%clk 0:02:40.4]} 10... Bg4 {[%clk 0:02:36.4]} 11. Rh4 {[%clk
0:02:30.6]} 11... Be6 {[%clk 0:02:32]} 12. Qa4 {[%clk 0:01:59.9]} 12... Rc8
{[%clk 0:02:29.7]} 13. Ke2 {[%clk 0:01:48.6]} 13... Qb6 {[%clk 0:02:26]} 14. Nb3
{[%clk 0:01:22.4]} 14... Bd7 {[%clk 0:02:24.1]} 15. Rah1 {[%clk 0:01:05.5]}
15... Nxd4+ {[%clk 0:02:14]} 16. Qxd4 {[%clk 0:00:53.4]} 16... Bxd4 {[%clk
0:02:14.7]} 17. Nfxd4 {[%clk 0:00:49.2]} 17... e5 {[%clk 0:02:12.4]} 18. Nc2
{[%clk 0:00:23.2]} 18... e4 {[%clk 0:02:12.3]} 19. Bxe4 {[%clk 0:00:23.9]} 19...
dxe4 {[%clk 0:02:11]} 20. Rxe4+ {[%clk 0:00:25.5]} 20... Be6 {[%clk 0:02:12.4]}
21. Ncd4 {[%clk 0:00:24.7]} 21... O-O {[%clk 0:02:10.9]} 22. Reh4 {[%clk
0:00:17.6]} 22... Bxb3 {[%clk 0:02:11.8]} 23. Rxh7 {[%clk 0:00:10.9]} 23... Rc2+
{[%clk 0:01:58.4]} 24. Nxc2 {[%clk 0:00:08.1]} 24... Qb5+ {[%clk 0:01:58.9]} 25.
Ke1 {[%clk 0:00:04.1]} 25... Qa5+ {[%clk 0:01:54.4]} 26. Kf1 {[%clk 0:00:04.6]}
26... Bc4+ {[%clk 0:01:54.2]} 27. Kg1 {[%clk 0:00:05.3]} 27... Qxg5 {[%clk
0:01:55.4]} 28. Rh8+ {[%clk 0:00:02.7]} 28... Kg7 {[%clk 0:01:56.9]} 29. R1h7+
{[%clk 0:00:04]} 29... Kf6 {[%clk 0:01:58.5]} 30. Rxf8 {[%clk 0:00:04.8]} 30...
Bxa2 {[%clk 0:01:55.1]} 31. Nd4 {[%clk 0:00:05.5]} 31... Qc5 {[%clk 0:01:50]}
32. Rfxf7+ {[%clk 0:00:05.2]} 32... Bxf7 {[%clk 0:01:49.9]} 33. Rh3 {[%clk
0:00:05.3]} 33... Qc1+ {[%clk 0:01:48.9]} 34. Kh2 {[%clk 0:00:06.4]} 34... Qxb2
{[%clk 0:01:50.1]} 35. Rf3+ {[%clk 0:00:07.4]} 35... Kg7 {[%clk 0:01:50.5]} 36.
Kg3 {[%clk 0:00:07.1]} 36... a5 {[%clk 0:01:50.3]} 37. Rf4 {[%clk 0:00:04.4]}
37... a4 {[%clk 0:01:48.4]} 38. Nf3 {[%clk 0:00:04.8]} 38... a3 {[%clk
0:01:48.5]} 39. Ng5 {[%clk 0:00:05.9]} 39... Qf6 {[%clk 0:01:48]} 40. Rxf6
{[%clk 0:00:06.5]} 40... Kxf6 {[%clk 0:01:49.1]} 41. Ne4+ {[%clk 0:00:08.2]}
41... Ke5 {[%clk 0:01:49.9]} 42. Nc3 {[%clk 0:00:09.8]} 42... b5 {[%clk
0:01:49.4]} 43. f4+ {[%clk 0:00:05.5]} 43... Kf6 {[%clk 0:01:50]} 44. e4 {[%clk
0:00:05.4]} 44... b4 {[%clk 0:01:50.9]} 45. e5+ {[%clk 0:00:06.7]} 45... Ke7
{[%clk 0:01:49.2]} 46. Na4 {[%clk 0:00:04]} 46... a2 {[%clk 0:01:47.9]} 47. Nc5
{[%clk 0:00:02.6]} 47... a1=Q {[%clk 0:01:46.4]} 48. Ne4 {[%clk 0:00:02.7]}
48... Qe1+ {[%clk 0:01:44.4]} 49. Nf2 {[%clk 0:00:02.9]} 49... b3 {[%clk
0:01:44.3]} 50. f5 {[%clk 0:00:02.6]} 50... gxf5 {[%clk 0:01:44.6]} 51. e6
{[%clk 0:00:03.5]} 51... Qxf2+ {[%clk 0:01:45.2]} 52. Kxf2 {[%clk 0:00:04.4]}
52... b2 {[%clk 0:01:46.7]} 53. exf7 {[%clk 0:00:05.1]} 53... b1=Q {[%clk
0:01:47.3]} 54. f8=Q+ {[%clk 0:00:07]} 54... Kxf8 {[%clk 0:01:48]} 55. Kg3
{[%clk 0:00:07.9]} 55... Kf7 {[%clk 0:01:49.1]} 56. Kh2 {[%clk 0:00:06.8]} 56...
Kf6 {[%clk 0:01:50.1]} 0-1

[Event "*** Titled Tuesday 3|2 Blitz"]
[Site "Chess.com"]
[Date "2017.03.07"]
[Round "9"]
[White "rpragchess"]
[Black "Tirantes"]
[Result "1-0"]
[WhiteElo "2158"]
[BlackElo "2239"]
[TimeControl "180+2"]
[EndTime "15:08:35 PST"]
[Termination "rpragchess won by checkmate"]

1. e4 {[%clk 0:03:02]} 1... e5 {[%clk 0:02:59.2]} 2. Nf3 {[%clk 0:03:01.1]} 2...
Nc6 {[%clk 0:03:00]} 3. Bc4 {[%clk 0:03:01.8]} 3... Nf6 {[%clk 0:02:59.9]} 4. d3
{[%clk 0:03:01.7]} 4... Be7 {[%clk 0:02:59.3]} 5. O-O {[%clk 0:03:02.6]} 5...
O-O {[%clk 0:02:59.3]} 6. Re1 {[%clk 0:03:03.9]} 6... d6 {[%clk 0:02:58.3]} 7.
c3 {[%clk 0:03:04.2]} 7... Na5 {[%clk 0:02:52]} 8. Bb5 {[%clk 0:03:04.9]} 8...
a6 {[%clk 0:02:51.6]} 9. Ba4 {[%clk 0:03:06.4]} 9... b5 {[%clk 0:02:52.1]} 10.
Bc2 {[%clk 0:03:06.8]} 10... c5 {[%clk 0:02:51.9]} 11. Nbd2 {[%clk 0:03:07.2]}
11... Nc6 {[%clk 0:02:50.2]} 12. Nf1 {[%clk 0:03:08]} 12... Re8 {[%clk
0:02:48.2]} 13. h3 {[%clk 0:03:09.2]} 13... Bf8 {[%clk 0:02:47.8]} 14. Bg5
{[%clk 0:03:09.5]} 14... Be7 {[%clk 0:02:40.7]} 15. Ne3 {[%clk 0:03:09.7]} 15...
Be6 {[%clk 0:02:36.1]} 16. a3 {[%clk 0:03:06.2]} 16... Nd7 {[%clk 0:02:32]} 17.
Bxe7 {[%clk 0:03:06.4]} 17... Qxe7 {[%clk 0:02:17.5]} 18. b4 {[%clk 0:03:07.5]}
18... Nb6 {[%clk 0:02:12.2]} 19. Qd2 {[%clk 0:03:04]} 19... Qf6 {[%clk
0:02:03.4]} 20. a4 {[%clk 0:03:03.7]} 20... cxb4 {[%clk 0:01:54.5]} 21. cxb4
{[%clk 0:03:01.4]} 21... Reb8 {[%clk 0:01:36.5]} 22. a5 {[%clk 0:03:01.1]} 22...
Nc8 {[%clk 0:01:34.2]} 23. Rac1 {[%clk 0:02:56.9]} 23... N8e7 {[%clk 0:01:34.7]}
24. Bd1 {[%clk 0:02:51.4]} 24... Rc8 {[%clk 0:01:34.2]} 25. Ng4 {[%clk
0:02:52.3]} 25... Bxg4 {[%clk 0:01:32]} 26. hxg4 {[%clk 0:02:53.9]} 26... Qe6
{[%clk 0:01:15.1]} 27. Ng5 {[%clk 0:02:53.7]} 27... Qd7 {[%clk 0:01:05.4]} 28.
Bb3 {[%clk 0:02:54.5]} 28... Nd8 {[%clk 0:01:02.6]} 29. f4 {[%clk 0:02:50.8]}
29... Qxg4 {[%clk 0:00:53.9]} 30. f5 {[%clk 0:02:46.8]} 30... Qf4 {[%clk
0:00:46]} 31. Qxf4 {[%clk 0:02:44.2]} 31... exf4 {[%clk 0:00:46.9]} 32. Kf2
{[%clk 0:02:44.3]} 32... h6 {[%clk 0:00:43.6]} 33. Nh3 {[%clk 0:02:40.1]} 33...
Ndc6 {[%clk 0:00:44.1]} 34. Nxf4 {[%clk 0:02:40.2]} 34... Nxb4 {[%clk
0:00:44.3]} 35. Ke3 {[%clk 0:02:33.7]} 35... Kf8 {[%clk 0:00:41.5]} 36. Rh1
{[%clk 0:02:29.1]} 36... Nbc6 {[%clk 0:00:38.7]} 37. f6 {[%clk 0:02:29]} 37...
gxf6 {[%clk 0:00:33.2]} 38. Rxh6 {[%clk 0:02:30.6]} 38... Nxa5 {[%clk
0:00:29.6]} 39. Rxc8+ {[%clk 0:01:39.9]} 39... Rxc8 {[%clk 0:00:29.7]} 40. Bd1
{[%clk 0:01:40.2]} 40... Kg7 {[%clk 0:00:24.4]} 41. Rh4 {[%clk 0:01:39.2]} 41...
Ng6 {[%clk 0:00:21.5]} 42. Nh5+ {[%clk 0:01:38.6]} 42... Kf8 {[%clk 0:00:22.2]}
43. Rh2 {[%clk 0:01:37.3]} 43... Nc6 {[%clk 0:00:21.9]} 44. Nxf6 {[%clk
0:01:37.2]} 44... a5 {[%clk 0:00:22.6]} 45. Bg4 {[%clk 0:01:37.6]} 45... Ra8
{[%clk 0:00:20.3]} 46. Bd7 {[%clk 0:01:38.5]} 46... Ra6 {[%clk 0:00:13.1]} 47.
Rh1 {[%clk 0:01:35.7]} 47... Nge5 {[%clk 0:00:12.5]} 48. Bf5 {[%clk 0:01:35.5]}
48... a4 {[%clk 0:00:11.7]} 49. d4 {[%clk 0:01:33.2]} 49... Nc4+ {[%clk
0:00:11.6]} 50. Kf4 {[%clk 0:01:32.6]} 50... Nxd4 {[%clk 0:00:11.4]} 51. Kg5
{[%clk 0:01:33.8]} 51... Nxf5 {[%clk 0:00:10.7]} 52. Rh8+ {[%clk 0:01:32.1]}
52... Ke7 {[%clk 0:00:04.8]} 53. Re8# {[%clk 0:01:33]} 1-0

[Event "*** Titled Tuesday 3|2 Blitz"]
[Site "Chess.com"]
[Date "2017.03.07"]
[Round "9"]
[White "Cecile_Haussernot"]
[Black "quesfr"]
[Result "0-1"]
[WhiteElo "2256"]
[BlackElo "2164"]
[TimeControl "180+2"]
[EndTime "15:08:47 PST"]
[Termination "quesfr won by checkmate"]

1. e4 {[%clk 0:00:09.9]} 1... e6 {[%clk 0:02:59.3]} 2. d4 {[%clk 0:00:10.7]}
2... d5 {[%clk 0:02:59.7]} 3. Nc3 {[%clk 0:00:12.4]} 3... Nf6 {[%clk 0:03:00]}
4. e5 {[%clk 0:00:13.3]} 4... Nfd7 {[%clk 0:03:00.8]} 5. f4 {[%clk 0:00:15.2]}
5... c5 {[%clk 0:03:02.2]} 6. Nf3 {[%clk 0:00:17.1]} 6... Nc6 {[%clk 0:03:02.8]}
7. Be3 {[%clk 0:00:18.7]} 7... Rb8 {[%clk 0:03:03.5]} 8. Qd2 {[%clk 0:00:19.4]}
8... Qa5 {[%clk 0:03:04.3]} 9. Be2 {[%clk 0:00:19.1]} 9... b5 {[%clk 0:03:05.2]}
10. dxc5 {[%clk 0:00:19.6]} 10... b4 {[%clk 0:03:05.3]} 11. Nd1 {[%clk
0:00:19.9]} 11... Bxc5 {[%clk 0:03:04.1]} 12. O-O {[%clk 0:00:20.8]} 12... Ba6
{[%clk 0:03:01.7]} 13. Bxa6 {[%clk 0:00:18.8]} 13... Qxa6 {[%clk 0:03:02]} 14.
Bxc5 {[%clk 0:00:19.4]} 14... Nxc5 {[%clk 0:03:02.6]} 15. Nf2 {[%clk 0:00:20]}
15... O-O {[%clk 0:02:56.1]} 16. f5 {[%clk 0:00:20.6]} 16... Ne4 {[%clk
0:02:25.2]} 17. Nxe4 {[%clk 0:00:20.8]} 17... dxe4 {[%clk 0:02:25.7]} 18. f6
{[%clk 0:00:22.4]} 18... Qb6+ {[%clk 0:01:06.2]} 19. Kh1 {[%clk 0:00:23.2]}
19... e3 {[%clk 0:01:04.6]} 20. Qe1 {[%clk 0:00:22.6]} 20... Nd4 {[%clk
0:00:27.6]} 21. Ng5 {[%clk 0:00:16.4]} 21... h6 {[%clk 0:00:16.5]} 22. fxg7
{[%clk 0:00:14.8]} 22... Kxg7 {[%clk 0:00:15.7]} 23. Ne4 {[%clk 0:00:15.3]}
23... Nf5 {[%clk 0:00:12.6]} 24. Qe2 {[%clk 0:00:14.9]} 24... Qc6 {[%clk
0:00:09.1]} 25. Qg4+ {[%clk 0:00:14.5]} 25... Kh8 {[%clk 0:00:10.1]} 26. Nf6
{[%clk 0:00:15.9]} 26... Rg8 {[%clk 0:00:10.4]} 27. Nxg8 {[%clk 0:00:15.8]}
27... Rxg8 {[%clk 0:00:11.2]} 28. Qh3 {[%clk 0:00:17.4]} 28... Rg6 {[%clk
0:00:11.8]} 29. Rad1 {[%clk 0:00:17.1]} 29... Qxc2 {[%clk 0:00:11.6]} 30. Rd8+
{[%clk 0:00:18.3]} 30... Kg7 {[%clk 0:00:12.5]} 31. Re1 {[%clk 0:00:15.3]} 31...
Qf2 {[%clk 0:00:11.6]} 32. Rdd1 {[%clk 0:00:15.8]} 32... e2 {[%clk 0:00:12.2]}
33. Rc1 {[%clk 0:00:17]} 33... Ne3 {[%clk 0:00:11.6]} 34. Rg1 {[%clk 0:00:18.6]}
34... Nd1 {[%clk 0:00:10.6]} 35. Rcxd1 {[%clk 0:00:15.9]} 35... exd1=Q {[%clk
0:00:10.4]} 36. Rxd1 {[%clk 0:00:17.8]} 36... Rg5 {[%clk 0:00:10.8]} 37. Rg1
{[%clk 0:00:16]} 37... Rxe5 {[%clk 0:00:10.8]} 38. Qg3+ {[%clk 0:00:11.3]} 38...
Qxg3 {[%clk 0:00:10.3]} 39. hxg3 {[%clk 0:00:13.2]} 39... Rh5# {[%clk
0:00:10.9]} 0-1

[Event "*** Titled Tuesday 3|2 Blitz"]
[Site "Chess.com"]
[Date "2017.03.07"]
[Round "9"]
[White "Alex_Molchanov"]
[Black "chessking2151"]
[Result "1-0"]
[WhiteElo "2466"]
[BlackElo "2380"]
[TimeControl "180+2"]
[EndTime "15:08:48 PST"]
[Termination "Alex_Molchanov won on time"]

1. c4 {[%clk 0:03:02]} 1... Nf6 {[%clk 0:03:00]} 2. Nc3 {[%clk 0:03:02.7]} 2...
e6 {[%clk 0:03:01.2]} 3. d4 {[%clk 0:03:00.8]} 3... d5 {[%clk 0:03:01.1]} 4.
cxd5 {[%clk 0:03:01.5]} 4... exd5 {[%clk 0:03:02.1]} 5. Bg5 {[%clk 0:03:03.1]}
5... c6 {[%clk 0:03:03.5]} 6. Qc2 {[%clk 0:03:03.9]} 6... g6 {[%clk 0:03:04.4]}
7. e3 {[%clk 0:02:57.2]} 7... Bf5 {[%clk 0:03:04.3]} 8. Qb3 {[%clk 0:02:58.4]}
8... b6 {[%clk 0:02:51.7]} 9. Nf3 {[%clk 0:02:57.7]} 9... Nbd7 {[%clk
0:02:46.7]} 10. Ba6 {[%clk 0:02:50.8]} 10... Qc7 {[%clk 0:02:36.9]} 11. Rc1
{[%clk 0:02:49.7]} 11... b5 {[%clk 0:02:05.9]} 12. Nxb5 {[%clk 0:02:28.2]} 12...
Qb6 {[%clk 0:01:52.2]} 13. Bb7 {[%clk 0:02:28.8]} 13... Rb8 {[%clk 0:01:28.8]}
14. Bxc6 {[%clk 0:02:28.4]} 14... Qa5+ {[%clk 0:01:20.7]} 15. Kf1 {[%clk
0:01:57.3]} 15... Be7 {[%clk 0:01:18.1]} 16. Bxf6 {[%clk 0:01:36.8]} 16... Bxf6
{[%clk 0:01:17.1]} 17. Qxd5 {[%clk 0:01:38.4]} 17... O-O {[%clk 0:01:12.6]} 18.
Bxd7 {[%clk 0:01:03.5]} 18... Rfd8 {[%clk 0:00:59.3]} 19. Nc3 {[%clk 0:01:03.1]}
19... Qb4 {[%clk 0:00:42]} 20. Qb3 {[%clk 0:00:27.3]} 20... Qa5 {[%clk
0:00:20.9]} 21. Bb5 {[%clk 0:00:26.2]} 21... a6 {[%clk 0:00:18.3]} 22. Qa4
{[%clk 0:00:25]} 22... Qxa4 {[%clk 0:00:12.8]} 23. Bxa4 {[%clk 0:00:24.7]} 23...
Bd3+ {[%clk 0:00:14.3]} 24. Kg1 {[%clk 0:00:25.5]} 24... Rxb2 {[%clk 0:00:15.3]}
25. Ne1 {[%clk 0:00:21.5]} 25... Bf5 {[%clk 0:00:14.8]} 26. h3 {[%clk
0:00:17.2]} 26... Rc8 {[%clk 0:00:15.6]} 27. g4 {[%clk 0:00:18.2]} 27... Be6
{[%clk 0:00:12.5]} 28. Kg2 {[%clk 0:00:19]} 28... Bd8 {[%clk 0:00:08.7]} 29. Nf3
{[%clk 0:00:18.5]} 29... Ba5 {[%clk 0:00:09]} 30. Ne4 {[%clk 0:00:15.6]} 30...
Rcb8 {[%clk 0:00:07.6]} 31. Bb3 {[%clk 0:00:14.2]} 31... Bxb3 {[%clk 0:00:03.7]}
32. axb3 {[%clk 0:00:16.1]} 32... R8xb3 {[%clk 0:00:04.8]} 33. g5 {[%clk
0:00:12.1]} 33... h6 {[%clk 0:00:03.2]} 34. h4 {[%clk 0:00:12.3]} 34... f5
{[%clk 0:00:03.8]} 35. gxf6 {[%clk 0:00:10.3]} 35... Kf7 {[%clk 0:00:05]} 36.
Ne5+ {[%clk 0:00:10.8]} 36... Ke6 {[%clk 0:00:06.6]} 37. Kf3 {[%clk 0:00:10.7]}
37... Bb6 {[%clk 0:00:05.1]} 38. Rc6+ {[%clk 0:00:11]} 1-0

[Event "*** Titled Tuesday 3|2 Blitz"]
[Site "Chess.com"]
[Date "2017.03.07"]
[Round "9"]
[White "alekroth64"]
[Black "GM_Splinter"]
[Result "0-1"]
[WhiteElo "2260"]
[BlackElo "2295"]
[TimeControl "180+2"]
[EndTime "15:09:14 PST"]
[Termination "GM_Splinter won on time"]

1. d4 {[%clk 0:03:02]} 1... f5 {[%clk 0:02:59.7]} 2. c4 {[%clk 0:03:01.5]} 2...
Nf6 {[%clk 0:03:00.7]} 3. Nf3 {[%clk 0:03:01.8]} 3... g6 {[%clk 0:03:01.5]} 4.
Nc3 {[%clk 0:03:00]} 4... Bg7 {[%clk 0:03:03]} 5. g3 {[%clk 0:03:01]} 5... O-O
{[%clk 0:03:03.6]} 6. Bg2 {[%clk 0:03:01.8]} 6... d6 {[%clk 0:03:04.9]} 7. O-O
{[%clk 0:03:02.3]} 7... Nc6 {[%clk 0:03:06.2]} 8. d5 {[%clk 0:03:03.1]} 8... Ne5
{[%clk 0:03:07.3]} 9. Nxe5 {[%clk 0:03:03.7]} 9... dxe5 {[%clk 0:03:09.2]} 10.
c5 {[%clk 0:03:03.5]} 10... h6 {[%clk 0:03:07.3]} 11. Qb3 {[%clk 0:02:59.5]}
11... Kh8 {[%clk 0:03:08]} 12. Rd1 {[%clk 0:02:54]} 12... a6 {[%clk 0:03:08.4]}
13. c6 {[%clk 0:02:52.8]} 13... b6 {[%clk 0:02:46.4]} 14. a4 {[%clk 0:02:51.4]}
14... g5 {[%clk 0:02:42]} 15. a5 {[%clk 0:02:40.1]} 15... b5 {[%clk 0:02:42.5]}
16. Be3 {[%clk 0:02:37.6]} 16... Ne8 {[%clk 0:01:54.2]} 17. Bc5 {[%clk
0:02:29.7]} 17... Nd6 {[%clk 0:01:54.6]} 18. Qb4 {[%clk 0:02:17.3]} 18... Qe8
{[%clk 0:01:54.8]} 19. h4 {[%clk 0:02:01.3]} 19... Qh5 {[%clk 0:01:43.8]} 20.
Bf3 {[%clk 0:02:00.7]} 20... Qf7 {[%clk 0:01:40.6]} 21. Bg2 {[%clk 0:01:34.6]}
21... Bf6 {[%clk 0:01:26]} 22. hxg5 {[%clk 0:01:21.4]} 22... hxg5 {[%clk
0:01:27.9]} 23. e3 {[%clk 0:01:06.8]} 23... Kg7 {[%clk 0:01:27.7]} 24. Kf1
{[%clk 0:01:02.2]} 24... Rh8 {[%clk 0:01:25]} 25. Ke2 {[%clk 0:00:56.4]} 25...
Rh2 {[%clk 0:01:20.6]} 26. Rg1 {[%clk 0:00:55.6]} 26... e4 {[%clk 0:00:47.6]}
27. Bd4 {[%clk 0:00:50.4]} 27... e6 {[%clk 0:00:46.4]} 28. Rad1 {[%clk
0:00:37.3]} 28... e5 {[%clk 0:00:35.5]} 29. Bc5 {[%clk 0:00:37.9]} 29... Be7
{[%clk 0:00:37.2]} 30. Rh1 {[%clk 0:00:31.3]} 30... Rxg2 {[%clk 0:00:27.5]} 31.
Kf1 {[%clk 0:00:31.1]} 31... f4 {[%clk 0:00:24.3]} 32. Kxg2 {[%clk 0:00:24.4]}
32... Bg4 {[%clk 0:00:24.9]} 33. exf4 {[%clk 0:00:21]} 33... Bf3+ {[%clk
0:00:24.4]} 34. Kg1 {[%clk 0:00:20.3]} 34... gxf4 {[%clk 0:00:25.5]} 35. Nxe4
{[%clk 0:00:14.9]} 35... Nxe4 {[%clk 0:00:23.1]} 36. Bxe7 {[%clk 0:00:13.9]}
36... fxg3 {[%clk 0:00:20.7]} 37. fxg3 {[%clk 0:00:14.1]} 37... Bxh1 {[%clk
0:00:21]} 38. Rf1 {[%clk 0:00:09]} 38... Qg6 {[%clk 0:00:17.1]} 39. Bh4 {[%clk
0:00:06.1]} 39... Nxg3 {[%clk 0:00:13.5]} 40. Qe7+ {[%clk 0:00:05.4]} 40... Kg8
{[%clk 0:00:10.7]} 41. Bxg3 {[%clk 0:00:04]} 41... Bxd5 {[%clk 0:00:08.3]} 0-1

[Event "*** Titled Tuesday 3|2 Blitz"]
[Site "Chess.com"]
[Date "2017.03.07"]
[Round "9"]
[White "Grebeniuk-S"]
[Black "spectralsoul"]
[Result "1-0"]
[WhiteElo "2440"]
[BlackElo "2599"]
[TimeControl "180+2"]
[EndTime "15:09:15 PST"]
[Termination "Grebeniuk-S won by resignation"]

1. d4 {[%clk 0:03:02]} 1... Nf6 {[%clk 0:03:00.3]} 2. Nf3 {[%clk 0:03:02.9]}
2... e6 {[%clk 0:03:00.7]} 3. e3 {[%clk 0:03:00.1]} 3... b6 {[%clk 0:02:59.2]}
4. Bd3 {[%clk 0:03:01.1]} 4... Bb7 {[%clk 0:03:00.4]} 5. Nbd2 {[%clk 0:03:01.2]}
5... c5 {[%clk 0:03:02]} 6. O-O {[%clk 0:03:01.1]} 6... Be7 {[%clk 0:03:03.5]}
7. b3 {[%clk 0:03:00.7]} 7... O-O {[%clk 0:03:03.9]} 8. Bb2 {[%clk 0:03:02]}
8... cxd4 {[%clk 0:03:05.1]} 9. exd4 {[%clk 0:03:03.1]} 9... d5 {[%clk
0:02:50.3]} 10. Ne5 {[%clk 0:03:02.5]} 10... Nbd7 {[%clk 0:02:37.3]} 11. Qe2
{[%clk 0:02:48.6]} 11... Nxe5 {[%clk 0:02:33.7]} 12. dxe5 {[%clk 0:02:46.5]}
12... Nd7 {[%clk 0:02:35]} 13. Qh5 {[%clk 0:02:23.2]} 13... g6 {[%clk
0:02:30.6]} 14. Qh3 {[%clk 0:02:20.7]} 14... Nc5 {[%clk 0:02:26]} 15. Nf3 {[%clk
0:02:16]} 15... Nxd3 {[%clk 0:02:22.7]} 16. cxd3 {[%clk 0:02:17.9]} 16... Rc8
{[%clk 0:02:23.7]} 17. Nd4 {[%clk 0:02:09.3]} 17... Bb4 {[%clk 0:02:02]} 18. Qe3
{[%clk 0:01:52.3]} 18... Qe7 {[%clk 0:01:52.1]} 19. Rac1 {[%clk 0:01:49]} 19...
Ba3 {[%clk 0:01:33.8]} 20. Bxa3 {[%clk 0:01:33.5]} 20... Qxa3 {[%clk 0:01:35.7]}
21. Qd2 {[%clk 0:01:34.4]} 21... Ba6 {[%clk 0:01:35.8]} 22. h4 {[%clk
0:01:10.8]} 22... h5 {[%clk 0:01:35.3]} 23. Kh2 {[%clk 0:01:06.2]} 23... Rfe8
{[%clk 0:01:11.3]} 24. f3 {[%clk 0:01:04.5]} 24... Qe7 {[%clk 0:00:51.5]} 25.
Kh3 {[%clk 0:01:00.6]} 25... Qa3 {[%clk 0:00:31.2]} 26. g4 {[%clk 0:00:59.9]}
26... hxg4+ {[%clk 0:00:25.6]} 27. fxg4 {[%clk 0:01:01.8]} 27... Rxc1 {[%clk
0:00:21.5]} 28. Rxc1 {[%clk 0:01:01.1]} 28... Bxd3 {[%clk 0:00:22.8]} 29. Rc7
{[%clk 0:00:49.5]} 29... Be4 {[%clk 0:00:19.9]} 30. Qf2 {[%clk 0:00:47.7]} 30...
Qf8 {[%clk 0:00:16.4]} 31. Qf6 {[%clk 0:00:43.7]} 31... Qg7 {[%clk 0:00:17.5]}
32. Qxg7+ {[%clk 0:00:36.1]} 32... Kxg7 {[%clk 0:00:18.3]} 33. Rxa7 {[%clk
0:00:38]} 33... Kg8 {[%clk 0:00:16.3]} 34. Rc7 {[%clk 0:00:36.9]} 34... Ra8
{[%clk 0:00:11]} 35. a4 {[%clk 0:00:37.4]} 35... Ra5 {[%clk 0:00:12.9]} 36. Kg3
{[%clk 0:00:28.9]} 36... Rc5 {[%clk 0:00:13.7]} 37. Rxc5 {[%clk 0:00:29.6]}
37... bxc5 {[%clk 0:00:15.1]} 38. Nb5 {[%clk 0:00:30.1]} 38... Bc2 {[%clk
0:00:16.1]} 39. a5 {[%clk 0:00:29]} 39... Bd3 {[%clk 0:00:16.2]} 40. Nc7 {[%clk
0:00:28.3]} 40... c4 {[%clk 0:00:15]} 41. bxc4 {[%clk 0:00:29.6]} 41... dxc4
{[%clk 0:00:16.9]} 42. Kf2 {[%clk 0:00:30.5]} 42... c3 {[%clk 0:00:16.8]} 43.
Ke3 {[%clk 0:00:30.4]} 43... c2 {[%clk 0:00:17.8]} 44. Kd2 {[%clk 0:00:31.4]}
44... Kf8 {[%clk 0:00:17.6]} 45. a6 {[%clk 0:00:31.8]} 45... Ke7 {[%clk
0:00:15.3]} 46. a7 {[%clk 0:00:31.6]} 46... Be4 {[%clk 0:00:16.7]} 47. a8=Q
{[%clk 0:00:31.5]} 47... Bxa8 {[%clk 0:00:18]} 48. Nxa8 {[%clk 0:00:33.4]} 48...
f6 {[%clk 0:00:19.1]} 49. Kxc2 {[%clk 0:00:33.2]} 49... fxe5 {[%clk 0:00:20.2]}
50. Kd3 {[%clk 0:00:34.6]} 50... Kd6 {[%clk 0:00:19.3]} 51. Ke4 {[%clk
0:00:35.8]} 1-0